[Event "Late-Titled-Tuesday-Blitz-April-16-2024"]
[Site "Chess.com"]
[Date "2024.04.16"]
[Round "7"]
[White "temus_galaktionov"]
[Black "mishanick"]
[Result "1/2-1/2"]
[WhiteElo "2877"]
[BlackElo "3048"]
[TimeControl "180+1"]
[EndTime "15:15:33 PDT"]
[Termination "Game drawn by repetition"]

1. d4 {[%clk 0:02:56.9]} 1... Nf6 {[%clk 0:02:59.9]} 2. c4 {[%clk 0:02:55.1]}
2... e6 {[%clk 0:03:00.4]} 3. Nf3 {[%clk 0:02:55.2]} 3... d5 {[%clk 0:03:01]} 4.
Nc3 {[%clk 0:02:55.4]} 4... Nbd7 {[%clk 0:03:00.6]} 5. Bf4 {[%clk 0:02:54.4]}
5... Bb4 {[%clk 0:02:58.4]} 6. cxd5 {[%clk 0:02:45.5]} 6... Nxd5 {[%clk
0:02:59.3]} 7. Bd2 {[%clk 0:02:44.8]} 7... N5f6 {[%clk 0:02:59.2]} 8. e3 {[%clk
0:02:39.3]} 8... b6 {[%clk 0:02:59.4]} 9. a3 {[%clk 0:02:38.3]} 9... Bxc3 {[%clk
0:02:57.6]} 10. Bxc3 {[%clk 0:02:39.2]} 10... Bb7 {[%clk 0:02:57.9]} 11. Be2
{[%clk 0:02:34.9]} 11... O-O {[%clk 0:02:57.6]} 12. O-O {[%clk 0:02:34.7]} 12...
Ne4 {[%clk 0:02:58]} 13. Rc1 {[%clk 0:02:34.4]} 13... c5 {[%clk 0:02:58.1]} 14.
dxc5 {[%clk 0:02:32.9]} 14... Nxc3 {[%clk 0:02:55.6]} 15. Rxc3 {[%clk
0:02:33.8]} 15... Nxc5 {[%clk 0:02:56]} 16. b4 {[%clk 0:02:30.5]} 16... Ne4
{[%clk 0:02:51.5]} 17. Rc4 {[%clk 0:02:08.9]} 17... Rc8 {[%clk 0:02:48.5]} 18.
Qxd8 {[%clk 0:01:49]} 18... Rfxd8 {[%clk 0:02:49.4]} 19. Rfc1 {[%clk 0:01:48.6]}
19... Rxc4 {[%clk 0:02:16.4]} 20. Rxc4 {[%clk 0:01:49.5]} 20... Nd6 {[%clk
0:02:11.4]} 21. Rc7 {[%clk 0:01:45.1]} 21... Rc8 {[%clk 0:02:11.5]} 22. Rxc8+
{[%clk 0:01:44.7]} 22... Bxc8 {[%clk 0:02:12]} 23. Kf1 {[%clk 0:01:39.1]} 23...
Bb7 {[%clk 0:02:11.1]} 24. Nd2 {[%clk 0:01:36.9]} 24... Kf8 {[%clk 0:02:10.3]}
25. f3 {[%clk 0:01:37.1]} 25... Ke7 {[%clk 0:02:09.2]} 26. Bd3 {[%clk
0:01:36.7]} 26... f5 {[%clk 0:02:09.1]} 27. f4 {[%clk 0:01:33.7]} 27... g6
{[%clk 0:02:06.5]} 28. g3 {[%clk 0:01:33.9]} 28... e5 {[%clk 0:02:04.3]} 29. Nc4
{[%clk 0:01:29.2]} 29... exf4 {[%clk 0:01:57.9]} 30. Nxd6 {[%clk 0:01:22.1]}
30... Kxd6 {[%clk 0:01:58.8]} 31. gxf4 {[%clk 0:01:22.4]} 31... Bd5 {[%clk
0:01:54.2]} 32. h4 {[%clk 0:01:20.6]} 32... Bc6 {[%clk 0:01:38.6]} 33. Ke2
{[%clk 0:01:19.2]} 33... Kd5 {[%clk 0:01:36.3]} 34. Kd2 {[%clk 0:01:18.6]} 34...
Ke6 {[%clk 0:00:56]} 35. Kc3 {[%clk 0:01:16.9]} 35... Kf6 {[%clk 0:00:56.4]} 36.
Kd4 {[%clk 0:01:13.4]} 36... Bf3 {[%clk 0:00:56.8]} 37. Bc4 {[%clk 0:01:07.1]}
37... Kg7 {[%clk 0:00:28.6]} 38. Bd5 {[%clk 0:00:41.5]} 38... Bxd5 {[%clk
0:00:09]} 39. Kxd5 {[%clk 0:00:42.4]} 39... Kh6 {[%clk 0:00:09.7]} 40. Kc6
{[%clk 0:00:41.4]} 40... Kh5 {[%clk 0:00:10.3]} 41. Kb7 {[%clk 0:00:41.4]} 41...
Kxh4 {[%clk 0:00:11]} 42. b5 {[%clk 0:00:40.2]} 42... Kg3 {[%clk 0:00:11]} 43.
Kxa7 {[%clk 0:00:40.7]} 43... h5 {[%clk 0:00:11.7]} 44. Kxb6 {[%clk 0:00:41.2]}
44... h4 {[%clk 0:00:12.4]} 45. Ka7 {[%clk 0:00:33.6]} 45... h3 {[%clk
0:00:12.7]} 46. b6 {[%clk 0:00:33.9]} 46... h2 {[%clk 0:00:13.3]} 47. b7 {[%clk
0:00:34.5]} 47... h1=Q {[%clk 0:00:13.6]} 48. b8=Q {[%clk 0:00:34.9]} 48... Qd5
{[%clk 0:00:13.2]} 49. Qb6 {[%clk 0:00:27.3]} 49... Qd7+ {[%clk 0:00:06.3]} 50.
Kb8 {[%clk 0:00:26.7]} 50... Qe8+ {[%clk 0:00:04.8]} 51. Kc7 {[%clk 0:00:20]}
51... Kh4 {[%clk 0:00:01.8]} 52. Qc5 {[%clk 0:00:18.3]} 52... Qf7+ {[%clk
0:00:01.7]} 53. Kb6 {[%clk 0:00:18.1]} 53... Qb3+ {[%clk 0:00:02]} 54. Kc6
{[%clk 0:00:17.5]} 54... Qa4+ {[%clk 0:00:02.3]} 55. Kd6 {[%clk 0:00:16.9]}
55... Kg4 {[%clk 0:00:02.9]} 56. Ke5 {[%clk 0:00:16.2]} 56... Qa6 {[%clk
0:00:02.5]} 57. Qb4 {[%clk 0:00:13.7]} 57... Kf3 {[%clk 0:00:02.5]} 58. Qc5
{[%clk 0:00:12.9]} 58... Kg4 {[%clk 0:00:02.2]} 59. Kd5 {[%clk 0:00:11.2]} 59...
Qd3+ {[%clk 0:00:01.8]} 60. Ke5 {[%clk 0:00:11]} 60... Qa6 {[%clk 0:00:02.7]}
1/2-1/2

[Event "Late-Titled-Tuesday-Blitz-April-16-2024"]
[Site "Chess.com"]
[Date "2024.04.16"]
[Round "7"]
[White "artin10862"]
[Black "Vladimir_2020"]
[Result "1-0"]
[WhiteElo "2937"]
[BlackElo "2762"]
[TimeControl "180+1"]
[EndTime "15:15:33 PDT"]
[Termination "artin10862 won on time"]

1. d4 {[%clk 0:02:54.6]} 1... d5 {[%clk 0:02:59.7]} 2. Nf3 {[%clk 0:02:51.4]}
2... Nf6 {[%clk 0:02:59]} 3. c4 {[%clk 0:02:51.2]} 3... c6 {[%clk 0:02:58.6]} 4.
Nc3 {[%clk 0:02:43.4]} 4... a6 {[%clk 0:02:58]} 5. cxd5 {[%clk 0:02:31.5]} 5...
cxd5 {[%clk 0:02:57.1]} 6. Bf4 {[%clk 0:02:30.7]} 6... Nc6 {[%clk 0:02:57.2]} 7.
e3 {[%clk 0:02:30]} 7... Bg4 {[%clk 0:02:56.5]} 8. Qb3 {[%clk 0:02:06]} 8... Na5
{[%clk 0:02:54.7]} 9. Qa4+ {[%clk 0:02:06]} 9... Bd7 {[%clk 0:02:54.1]} 10. Qc2
{[%clk 0:02:05.7]} 10... e6 {[%clk 0:02:51.6]} 11. Bd3 {[%clk 0:02:05.2]} 11...
Rc8 {[%clk 0:02:47.8]} 12. O-O {[%clk 0:02:00.9]} 12... Bb4 {[%clk 0:02:47.2]}
13. Ne5 {[%clk 0:01:57.5]} 13... Nc6 {[%clk 0:02:32.9]} 14. Qe2 {[%clk
0:01:51.2]} 14... Bxc3 {[%clk 0:02:28.6]} 15. bxc3 {[%clk 0:01:50.8]} 15... Nxe5
{[%clk 0:02:25.5]} 16. dxe5 {[%clk 0:01:50.8]} 16... Ng8 {[%clk 0:02:15.7]} 17.
Qg4 {[%clk 0:01:32.9]} 17... Kf8 {[%clk 0:02:14.9]} 18. Bg3 {[%clk 0:01:15.2]}
18... Ne7 {[%clk 0:02:10.8]} 19. Bh4 {[%clk 0:01:09.9]} 19... h6 {[%clk
0:01:59.7]} 20. Qb4 {[%clk 0:01:04.1]} 20... g5 {[%clk 0:01:48.6]} 21. Bg3
{[%clk 0:01:03.6]} 21... b5 {[%clk 0:01:48.9]} 22. f4 {[%clk 0:00:58.2]} 22...
Qc7 {[%clk 0:01:34.4]} 23. fxg5 {[%clk 0:00:40.1]} 23... hxg5 {[%clk 0:01:34.3]}
24. Qg4 {[%clk 0:00:31.5]} 24... Qxc3 {[%clk 0:01:27.1]} 25. Rad1 {[%clk
0:00:26.3]} 25... Rg8 {[%clk 0:01:13.4]} 26. Qh5 {[%clk 0:00:25.6]} 26... Nf5
{[%clk 0:01:13.3]} 27. Bxf5 {[%clk 0:00:21.9]} 27... exf5 {[%clk 0:01:13.4]} 28.
Rxd5 {[%clk 0:00:17.1]} 28... Be6 {[%clk 0:01:10]} 29. Rd6 {[%clk 0:00:16.8]}
29... Qxe3+ {[%clk 0:01:07.5]} 30. Kh1 {[%clk 0:00:16.7]} 30... Rc1 {[%clk
0:01:04]} 31. Qh6+ {[%clk 0:00:12.3]} 31... Ke8 {[%clk 0:01:02.3]} 32. Rxe6+
{[%clk 0:00:12.2]} 32... fxe6 {[%clk 0:01:01.4]} 33. Qxe6+ {[%clk 0:00:13.1]}
33... Kf8 {[%clk 0:01:01.5]} 34. Qxf5+ {[%clk 0:00:11.4]} 34... Kg7 {[%clk
0:00:57.7]} 35. h3 {[%clk 0:00:03.9]} 35... Rxf1+ {[%clk 0:00:55.8]} 36. Qxf1
{[%clk 0:00:04.8]} 36... Rf8 {[%clk 0:00:47.7]} 37. Qd1 {[%clk 0:00:01.3]} 37...
Qxg3 {[%clk 0:00:46.2]} 38. e6 {[%clk 0:00:01.5]} 38... Qf4 {[%clk 0:00:39.5]}
39. Qd7+ {[%clk 0:00:01.2]} 39... Kh6 {[%clk 0:00:31]} 40. e7 {[%clk 0:00:01.7]}
40... Qc1+ {[%clk 0:00:12.9]} 41. Kh2 {[%clk 0:00:02.1]} 41... Qf4+ {[%clk
0:00:13.1]} 42. Kh1 {[%clk 0:00:02.7]} 42... Qc1+ {[%clk 0:00:08.6]} 43. Kh2
{[%clk 0:00:02.9]} 43... Rf1 {[%clk 0:00:08.5]} 44. Qe6+ {[%clk 0:00:01.8]}
44... Kg7 {[%clk 0:00:08.8]} 45. Qe5+ {[%clk 0:00:02.2]} 45... Kh7 {[%clk
0:00:08.3]} 46. Qe4+ {[%clk 0:00:02.1]} 46... Kh6 {[%clk 0:00:08.2]} 47. Qe6+
{[%clk 0:00:01.9]} 47... Kg7 {[%clk 0:00:08.5]} 48. Qe5+ {[%clk 0:00:02.1]}
48... Kh7 {[%clk 0:00:08.5]} 49. e8=Q {[%clk 0:00:02.5]} 49... Rh1+ {[%clk
0:00:07.8]} 50. Kg3 {[%clk 0:00:03.2]} 50... Qa3+ {[%clk 0:00:05.5]} 51. Kg4
{[%clk 0:00:03.4]} 1-0

[Event "Late-Titled-Tuesday-Blitz-April-16-2024"]
[Site "Chess.com"]
[Date "2024.04.16"]
[Round "7"]
[White "AlphaGoosee"]
[Black "ATM622"]
[Result "0-1"]
[WhiteElo "2573"]
[BlackElo "2457"]
[TimeControl "180+1"]
[EndTime "15:15:37 PDT"]
[Termination "ATM622 won by resignation"]

1. e4 {[%clk 0:03:00.9]} 1... c6 {[%clk 0:02:58.2]} 2. d4 {[%clk 0:03:00.7]}
2... g6 {[%clk 0:02:57.6]} 3. f4 {[%clk 0:02:56]} 3... Bg7 {[%clk 0:02:56.7]} 4.
Be3 {[%clk 0:02:45.1]} 4... d6 {[%clk 0:02:54.9]} 5. Nf3 {[%clk 0:02:42.8]} 5...
Nd7 {[%clk 0:02:54.5]} 6. Bc4 {[%clk 0:02:41.3]} 6... Ngf6 {[%clk 0:02:36.5]} 7.
e5 {[%clk 0:02:34.8]} 7... Nd5 {[%clk 0:02:27.2]} 8. Bd2 {[%clk 0:02:20.6]} 8...
O-O {[%clk 0:02:24.8]} 9. O-O {[%clk 0:02:20.3]} 9... dxe5 {[%clk 0:02:17.3]}
10. fxe5 {[%clk 0:02:21.2]} 10... N7b6 {[%clk 0:02:16]} 11. Bb3 {[%clk
0:02:19.9]} 11... Bf5 {[%clk 0:02:08.8]} 12. c4 {[%clk 0:02:17.2]} 12... Nc7
{[%clk 0:02:08]} 13. Nc3 {[%clk 0:02:17.5]} 13... a5 {[%clk 0:02:03.8]} 14. a4
{[%clk 0:02:10.1]} 14... Bd3 {[%clk 0:02:03.5]} 15. c5 {[%clk 0:02:04.5]} 15...
Nbd5 {[%clk 0:01:58.4]} 16. Re1 {[%clk 0:02:01.1]} 16... Ne6 {[%clk 0:01:43.7]}
17. Nxd5 {[%clk 0:01:58.8]} 17... cxd5 {[%clk 0:01:43.2]} 18. Be3 {[%clk
0:01:59.2]} 18... Be4 {[%clk 0:01:40.7]} 19. Nd2 {[%clk 0:01:59.2]} 19... Bd3
{[%clk 0:01:37.7]} 20. Qf3 {[%clk 0:01:56.5]} 20... Nc7 {[%clk 0:01:28.8]} 21.
h4 {[%clk 0:01:49.9]} 21... Qd7 {[%clk 0:01:20.7]} 22. h5 {[%clk 0:01:47.1]}
22... f6 {[%clk 0:01:12]} 23. exf6 {[%clk 0:01:38.1]} 23... Bxf6 {[%clk
0:01:07.9]} 24. Qg3 {[%clk 0:01:29]} 24... Bf5 {[%clk 0:00:37.1]} 25. Nf3 {[%clk
0:01:24.6]} 25... Kh8 {[%clk 0:00:33.6]} 26. h6 {[%clk 0:01:21.1]} 26... Be4
{[%clk 0:00:29.6]} 27. Ng5 {[%clk 0:01:16.4]} 27... Bf5 {[%clk 0:00:16.8]} 28.
Bf4 {[%clk 0:01:14.6]} 28... Ne8 {[%clk 0:00:17]} 29. Be5 {[%clk 0:01:13.2]}
29... Kg8 {[%clk 0:00:14.3]} 30. Rad1 {[%clk 0:00:42.1]} 30... e6 {[%clk
0:00:14.4]} 31. Nf3 {[%clk 0:00:41.2]} 31... Qd8 {[%clk 0:00:12.8]} 32. Bxf6
{[%clk 0:00:35.8]} 32... Nxf6 {[%clk 0:00:12.4]} 33. Qe5 {[%clk 0:00:32.8]}
33... Qd7 {[%clk 0:00:03.7]} 34. Ng5 {[%clk 0:00:27.6]} 34... Ng4 {[%clk
0:00:03.9]} 35. Qg3 {[%clk 0:00:25.4]} 35... Rae8 {[%clk 0:00:04.1]} 36. Nf3
{[%clk 0:00:24.3]} 36... Nf6 {[%clk 0:00:03.8]} 37. Ne5 {[%clk 0:00:24.1]} 37...
Qe7 {[%clk 0:00:04.2]} 38. c6 {[%clk 0:00:21.7]} 38... Nh5 {[%clk 0:00:03.8]}
39. Qh2 {[%clk 0:00:20.2]} 39... bxc6 {[%clk 0:00:04]} 40. g4 {[%clk 0:00:20.5]}
40... Bxg4 {[%clk 0:00:03.5]} 41. Nxg4 {[%clk 0:00:20.2]} 41... Qg5 {[%clk
0:00:03.9]} 42. Qg2 {[%clk 0:00:13.5]} 42... Rf4 {[%clk 0:00:04]} 43. Ne5 {[%clk
0:00:10.6]} 43... Qxh6 {[%clk 0:00:03.4]} 44. Rf1 {[%clk 0:00:10.2]} 44... Ref8
{[%clk 0:00:03.3]} 45. Rxf4 {[%clk 0:00:09.9]} 45... Nxf4 {[%clk 0:00:03.4]} 46.
Qh2 {[%clk 0:00:06]} 46... Qg5+ {[%clk 0:00:03.4]} 47. Kh1 {[%clk 0:00:05.9]}
47... Qf5 {[%clk 0:00:03.3]} 48. Rf1 {[%clk 0:00:06.1]} 48... Qe4+ {[%clk
0:00:03.4]} 49. Kg1 {[%clk 0:00:06.6]} 49... Ne2+ {[%clk 0:00:03.5]} 50. Qxe2
{[%clk 0:00:06.8]} 50... Qxe2 {[%clk 0:00:03.8]} 51. Rxf8+ {[%clk 0:00:07.7]}
51... Kxf8 {[%clk 0:00:04.3]} 52. Nd7+ {[%clk 0:00:08.5]} 52... Ke7 {[%clk
0:00:04.3]} 53. Nc5 {[%clk 0:00:09.4]} 53... Qxb2 {[%clk 0:00:04.3]} 54. Kf1
{[%clk 0:00:09.4]} 54... Qxd4 {[%clk 0:00:04.3]} 55. Nb7 {[%clk 0:00:09.1]}
55... Qa1+ {[%clk 0:00:04]} 56. Kg2 {[%clk 0:00:09.5]} 56... Qb2+ {[%clk
0:00:04.7]} 57. Kg3 {[%clk 0:00:10.4]} 57... Qxb3+ {[%clk 0:00:05.2]} 58. Kg4
{[%clk 0:00:08.2]} 58... Qxb7 {[%clk 0:00:06.1]} 59. Kg5 {[%clk 0:00:08.5]}
59... c5 {[%clk 0:00:06.6]} 60. Kh6 {[%clk 0:00:09.4]} 60... c4 {[%clk
0:00:07.1]} 61. Kg7 {[%clk 0:00:10.3]} 61... c3 {[%clk 0:00:07.7]} 62. Kg8
{[%clk 0:00:11.2]} 62... c2 {[%clk 0:00:08.4]} 63. Kg7 {[%clk 0:00:12.1]} 63...
c1=Q {[%clk 0:00:08.6]} 64. Kg8 {[%clk 0:00:13]} 64... Kf6 {[%clk 0:00:08.8]}
0-1

[Event "Late-Titled-Tuesday-Blitz-April-16-2024"]
[Site "Chess.com"]
[Date "2024.04.16"]
[Round "7"]
[White "Agustin_Meza"]
[Black "carlsenCamacho"]
[Result "0-1"]
[WhiteElo "2198"]
[BlackElo "2294"]
[TimeControl "180+1"]
[EndTime "15:16:17 PDT"]
[Termination "carlsenCamacho won on time"]

1. e4 {[%clk 0:02:58.9]} 1... c6 {[%clk 0:02:56.8]} 2. d4 {[%clk 0:02:57.6]}
2... d5 {[%clk 0:02:57.2]} 3. c4 {[%clk 0:02:58.5]} 3... g6 {[%clk 0:02:50.9]}
4. exd5 {[%clk 0:02:58]} 4... cxd5 {[%clk 0:02:51.1]} 5. cxd5 {[%clk 0:02:58.9]}
5... Nf6 {[%clk 0:02:51.1]} 6. Nc3 {[%clk 0:02:59.3]} 6... Bg7 {[%clk
0:02:51.3]} 7. Nf3 {[%clk 0:02:59.8]} 7... O-O {[%clk 0:02:51.7]} 8. Be2 {[%clk
0:02:55.6]} 8... Nxd5 {[%clk 0:02:51.3]} 9. O-O {[%clk 0:02:56]} 9... b6 {[%clk
0:02:50.4]} 10. Qb3 {[%clk 0:02:51.6]} 10... Bb7 {[%clk 0:02:47.1]} 11. Bg5
{[%clk 0:02:46.5]} 11... h6 {[%clk 0:02:43.3]} 12. Bh4 {[%clk 0:02:45.8]} 12...
Nf4 {[%clk 0:02:16.6]} 13. Qc2 {[%clk 0:02:25.8]} 13... Nc6 {[%clk 0:02:02.8]}
14. Rad1 {[%clk 0:02:16.9]} 14... Nb4 {[%clk 0:01:57]} 15. Qd2 {[%clk
0:02:14.6]} 15... Nxe2+ {[%clk 0:01:49.5]} 16. Qxe2 {[%clk 0:02:15.5]} 16... Ba6
{[%clk 0:01:48.7]} 17. Qxe7 {[%clk 0:02:11.6]} 17... Bxf1 {[%clk 0:01:44.4]} 18.
Qxd8 {[%clk 0:02:10.7]} 18... Rfxd8 {[%clk 0:01:38.4]} 19. Bxd8 {[%clk
0:02:11.6]} 19... Rxd8 {[%clk 0:01:37.8]} 20. Kxf1 {[%clk 0:02:10.5]} 20... Nd5
{[%clk 0:01:36.1]} 21. Nxd5 {[%clk 0:02:00.2]} 21... Rxd5 {[%clk 0:01:37]} 22.
Ke2 {[%clk 0:02:00.6]} 22... f5 {[%clk 0:01:34]} 23. Rc1 {[%clk 0:01:55.4]}
23... Rb5 {[%clk 0:01:28.9]} 24. b3 {[%clk 0:01:50]} 24... Ra5 {[%clk 0:01:21]}
25. a4 {[%clk 0:01:49.3]} 25... Bf8 {[%clk 0:01:07.9]} 26. Rc8 {[%clk
0:01:40.3]} 26... b5 {[%clk 0:01:06.1]} 27. Ne5 {[%clk 0:01:33.8]} 27... bxa4
{[%clk 0:01:01.7]} 28. bxa4 {[%clk 0:01:34.7]} 28... Kg7 {[%clk 0:01:00]} 29.
Rc7+ {[%clk 0:01:29]} 29... Kg8 {[%clk 0:00:57.4]} 30. Rc4 {[%clk 0:01:23.6]}
30... Kg7 {[%clk 0:00:54.2]} 31. Kd3 {[%clk 0:01:18.9]} 31... Bd6 {[%clk
0:00:54.4]} 32. Nc6 {[%clk 0:01:16.5]} 32... Ra6 {[%clk 0:00:51.1]} 33. d5
{[%clk 0:01:14.6]} 33... Kf6 {[%clk 0:00:50.6]} 34. g3 {[%clk 0:01:10.7]} 34...
g5 {[%clk 0:00:48.8]} 35. f4 {[%clk 0:01:09.6]} 35... gxf4 {[%clk 0:00:48.2]}
36. gxf4 {[%clk 0:01:10.5]} 36... h5 {[%clk 0:00:48.6]} 37. a5 {[%clk
0:01:04.5]} 37... h4 {[%clk 0:00:40.7]} 38. Ke3 {[%clk 0:01:03]} 38... Kf7
{[%clk 0:00:33.7]} 39. Kf3 {[%clk 0:01:02.4]} 39... Ke8 {[%clk 0:00:32.8]} 40.
Kg2 {[%clk 0:01:00.5]} 40... Kd7 {[%clk 0:00:31.2]} 41. Kh3 {[%clk 0:01:00.3]}
41... Bc7 {[%clk 0:00:32.1]} 42. Kxh4 {[%clk 0:00:59.2]} 42... Bxa5 {[%clk
0:00:30.5]} 43. Kg5 {[%clk 0:00:52.7]} 43... Kd6 {[%clk 0:00:22.8]} 44. Kxf5
{[%clk 0:00:52.2]} 44... Kxd5 {[%clk 0:00:20.4]} 45. Nxa5 {[%clk 0:00:45.6]}
45... Rxa5 {[%clk 0:00:21.3]} 46. Re4 {[%clk 0:00:45.2]} 46... Kd6+ {[%clk
0:00:19.7]} 47. Kf6 {[%clk 0:00:44.7]} 47... Rh5 {[%clk 0:00:20.2]} 48. Re2
{[%clk 0:00:41.7]} 48... Kd7 {[%clk 0:00:18.4]} 49. Kg6 {[%clk 0:00:40.3]} 49...
Rh4 {[%clk 0:00:13.2]} 50. f5 {[%clk 0:00:40.4]} 50... a5 {[%clk 0:00:10.1]} 51.
f6 {[%clk 0:00:40.6]} 51... a4 {[%clk 0:00:09.1]} 52. f7 {[%clk 0:00:40.6]}
52... Rf4 {[%clk 0:00:08.9]} 53. Kg7 {[%clk 0:00:40.7]} 53... Rg4+ {[%clk
0:00:09.2]} 54. Kf6 {[%clk 0:00:32.4]} 54... Rf4+ {[%clk 0:00:09.5]} 55. Kg6
{[%clk 0:00:32.5]} 55... a3 {[%clk 0:00:07.7]} 56. Ra2 {[%clk 0:00:28.5]} 56...
Ke7 {[%clk 0:00:04.1]} 57. Rxa3 {[%clk 0:00:26.5]} 57... Rf6+ {[%clk 0:00:04]}
58. Kg5 {[%clk 0:00:25.1]} 58... Rxf7 {[%clk 0:00:04.9]} 59. Ra7+ {[%clk
0:00:21.2]} 59... Kf8 {[%clk 0:00:05.8]} 60. Ra8+ {[%clk 0:00:21.3]} 60... Kg7
{[%clk 0:00:05.8]} 61. h4 {[%clk 0:00:21.9]} 61... Rb7 {[%clk 0:00:05.3]} 62.
Ra5 {[%clk 0:00:21.5]} 62... Kh7 {[%clk 0:00:05.6]} 63. h5 {[%clk 0:00:21.5]}
63... Kg7 {[%clk 0:00:06.5]} 64. Re5 {[%clk 0:00:19.7]} 64... Kh7 {[%clk
0:00:06.3]} 65. h6 {[%clk 0:00:12.9]} 65... Ra7 {[%clk 0:00:05.9]} 66. Rf5
{[%clk 0:00:12.6]} 66... Rb7 {[%clk 0:00:06]} 67. Ra5 {[%clk 0:00:12.6]} 67...
Rc7 {[%clk 0:00:06]} 68. Kh5 {[%clk 0:00:09.1]} 68... Rc1 {[%clk 0:00:05.4]} 69.
Ra7+ {[%clk 0:00:08.7]} 69... Kh8 {[%clk 0:00:05.9]} 70. Ra8+ {[%clk 0:00:04.1]}
70... Kh7 {[%clk 0:00:05.8]} 71. Ra7+ {[%clk 0:00:05]} 71... Kh8 {[%clk
0:00:06.2]} 0-1

[Event "Late-Titled-Tuesday-Blitz-April-16-2024"]
[Site "Chess.com"]
[Date "2024.04.16"]
[Round "7"]
[White "Respectful_Dave"]
[Black "PotapovaM"]
[Result "0-1"]
[WhiteElo "2380"]
[BlackElo "2540"]
[TimeControl "180+1"]
[EndTime "15:16:19 PDT"]
[Termination "PotapovaM won by checkmate"]

1. d4 {[%clk 0:03:00.9]} 1... Nf6 {[%clk 0:02:58.7]} 2. c4 {[%clk 0:03:00.7]}
2... e6 {[%clk 0:02:55.4]} 3. Nc3 {[%clk 0:02:57.9]} 3... d5 {[%clk 0:02:52.8]}
4. Bg5 {[%clk 0:02:56.3]} 4... c6 {[%clk 0:02:41.6]} 5. e3 {[%clk 0:02:51.9]}
5... Nbd7 {[%clk 0:02:38.1]} 6. Nf3 {[%clk 0:02:51.3]} 6... Qa5 {[%clk
0:02:37.9]} 7. Rc1 {[%clk 0:02:27.7]} 7... Bb4 {[%clk 0:02:17.7]} 8. Nd2 {[%clk
0:02:12.3]} 8... O-O {[%clk 0:02:15.5]} 9. Bd3 {[%clk 0:02:11]} 9... e5 {[%clk
0:02:14.7]} 10. Bxf6 {[%clk 0:01:15.3]} 10... Nxf6 {[%clk 0:02:00.5]} 11. dxe5
{[%clk 0:01:14.9]} 11... Nd7 {[%clk 0:01:58.7]} 12. a3 {[%clk 0:01:08.6]} 12...
Bxc3 {[%clk 0:01:25.5]} 13. Rxc3 {[%clk 0:01:08.5]} 13... Re8 {[%clk 0:01:14.1]}
14. f4 {[%clk 0:01:06.2]} 14... Qb6 {[%clk 0:01:06]} 15. O-O {[%clk 0:00:57.2]}
15... Qxe3+ {[%clk 0:01:05.5]} 16. Kh1 {[%clk 0:00:57.5]} 16... Qb6 {[%clk
0:01:00.8]} 17. Bxh7+ {[%clk 0:00:55.1]} 17... Kxh7 {[%clk 0:00:41.4]} 18. Rh3+
{[%clk 0:00:54.8]} 18... Kg8 {[%clk 0:00:41.9]} 19. Qh5 {[%clk 0:00:54.4]} 19...
Kf8 {[%clk 0:00:42.5]} 20. Qg5 {[%clk 0:00:14.6]} 20... Kg8 {[%clk 0:00:43]} 21.
Rg3 {[%clk 0:00:11.7]} 21... g6 {[%clk 0:00:40.1]} 22. Nf3 {[%clk 0:00:06.9]}
22... Nf8 {[%clk 0:00:38]} 23. Qh6 {[%clk 0:00:06.9]} 23... Qxb2 {[%clk
0:00:30.3]} 24. Nh4 {[%clk 0:00:06.1]} 24... Qe2 {[%clk 0:00:27.2]} 25. Rg1
{[%clk 0:00:04.2]} 25... Qc2 {[%clk 0:00:14.9]} 26. f5 {[%clk 0:00:02.2]} 26...
Bxf5 {[%clk 0:00:14.2]} 27. Rf1 {[%clk 0:00:02.4]} 27... Bd3 {[%clk 0:00:13]}
28. Rh3 {[%clk 0:00:01.7]} 28... Qe2 {[%clk 0:00:09.9]} 29. Rg1 {[%clk
0:00:01.3]} 29... Qh5 {[%clk 0:00:09.8]} 30. Qf4 {[%clk 0:00:01.3]} 30... Be4
{[%clk 0:00:08.3]} 31. Nf3 {[%clk 0:00:01.6]} 31... Qf5 {[%clk 0:00:06.4]} 32.
Qh6 {[%clk 0:00:02.3]} 32... Nh7 {[%clk 0:00:04.3]} 33. Qxh7+ {[%clk 0:00:02.5]}
33... Kf8 {[%clk 0:00:05]} 34. Rf1 {[%clk 0:00:02.3]} 34... Qg4 {[%clk
0:00:03.4]} 35. Nd2 {[%clk 0:00:02.5]} 35... Bf5 {[%clk 0:00:03.2]} 36. Qh6+
{[%clk 0:00:01.7]} 36... Ke7 {[%clk 0:00:03.3]} 37. Rg3 {[%clk 0:00:02]} 37...
Qd4 {[%clk 0:00:03]} 38. Qg5+ {[%clk 0:00:02]} 38... Kd7 {[%clk 0:00:03.3]} 39.
Nf3 {[%clk 0:00:01.9]} 39... Qxc4 {[%clk 0:00:03.9]} 40. Rg1 {[%clk 0:00:01.4]}
40... Re6 {[%clk 0:00:03.2]} 41. Qh6 {[%clk 0:00:01.6]} 41... Rae8 {[%clk
0:00:03.1]} 42. Qg7 {[%clk 0:00:02.2]} 42... R6e7 {[%clk 0:00:03.6]} 43. Ng5
{[%clk 0:00:02]} 43... Qf4 {[%clk 0:00:03.2]} 44. Qf6 {[%clk 0:00:02.5]} 44...
Qxe5 {[%clk 0:00:03.5]} 45. Qxe5 {[%clk 0:00:02]} 45... Rxe5 {[%clk 0:00:04.4]}
46. Nxf7 {[%clk 0:00:02.5]} 46... R5e7 {[%clk 0:00:04.4]} 47. Nh6 {[%clk
0:00:02.4]} 47... d4 {[%clk 0:00:04.5]} 48. h3 {[%clk 0:00:01.4]} 48... c5
{[%clk 0:00:04.8]} 49. Rg5 {[%clk 0:00:01.7]} 49... Re5 {[%clk 0:00:04.3]} 50.
Kh2 {[%clk 0:00:02.1]} 50... d3 {[%clk 0:00:04.3]} 51. Nf7 {[%clk 0:00:01.9]}
51... Rd5 {[%clk 0:00:03.9]} 52. Rd1 {[%clk 0:00:01.6]} 52... c4 {[%clk
0:00:04.2]} 53. g4 {[%clk 0:00:02.2]} 53... Re2+ {[%clk 0:00:03.8]} 54. Kg3
{[%clk 0:00:02.2]} 54... Be6 {[%clk 0:00:04.5]} 55. Rxd5+ {[%clk 0:00:02.3]}
55... Bxd5 {[%clk 0:00:05.4]} 56. Ng5 {[%clk 0:00:02.3]} 56... Kd6 {[%clk
0:00:05]} 57. Kf4 {[%clk 0:00:02.4]} 57... Kc5 {[%clk 0:00:04.2]} 58. h4 {[%clk
0:00:02.5]} 58... Kd4 {[%clk 0:00:04.2]} 59. h5 {[%clk 0:00:01.9]} 59... gxh5
{[%clk 0:00:05.1]} 60. gxh5 {[%clk 0:00:02.2]} 60... Rh2 {[%clk 0:00:05.6]} 61.
Kg3 {[%clk 0:00:01.4]} 61... Rxh5 {[%clk 0:00:05.6]} 62. Kg4 {[%clk 0:00:01.8]}
62... Rh8 {[%clk 0:00:05.2]} 63. Kf4 {[%clk 0:00:01.1]} 63... Rf8+ {[%clk
0:00:05.2]} 64. Kg4 {[%clk 0:00:02]} 64... Rg8 {[%clk 0:00:05.3]} 65. Re1 {[%clk
0:00:02.6]} 65... c3 {[%clk 0:00:04.6]} 66. Kf4 {[%clk 0:00:02.8]} 66... Rf8+
{[%clk 0:00:04.3]} 67. Kg4 {[%clk 0:00:03]} 67... d2 {[%clk 0:00:04.9]} 68. Re7
{[%clk 0:00:03.4]} 68... d1=Q+ {[%clk 0:00:04.6]} 69. Kh4 {[%clk 0:00:03.9]}
69... Qh1+ {[%clk 0:00:04.8]} 70. Nh3 {[%clk 0:00:03.7]} 70... Rh8+ {[%clk
0:00:03.7]} 71. Rh7 {[%clk 0:00:03.8]} 71... Rxh7+ {[%clk 0:00:03.5]} 72. Kg5
{[%clk 0:00:04.7]} 72... Qxh3 {[%clk 0:00:03.5]} 73. a4 {[%clk 0:00:05.6]} 73...
Qh4+ {[%clk 0:00:03.8]} 74. Kg6 {[%clk 0:00:05.5]} 74... Rh6+ {[%clk 0:00:04.4]}
75. Kg7 {[%clk 0:00:05.7]} 75... Qg5+ {[%clk 0:00:04.8]} 76. Kf8 {[%clk
0:00:06.6]} 76... Rf6+ {[%clk 0:00:05.2]} 77. Ke7 {[%clk 0:00:07.5]} 77... Qe5+
{[%clk 0:00:05.6]} 78. Kd8 {[%clk 0:00:07.9]} 78... Rd6+ {[%clk 0:00:06]} 79.
Kc7 {[%clk 0:00:08.8]} 79... Qe7+ {[%clk 0:00:06.3]} 80. Kb8 {[%clk 0:00:09.7]}
80... Rd8+ {[%clk 0:00:06.5]} 81. Kxa7 {[%clk 0:00:10.6]} 81... Qc5# {[%clk
0:00:06.8]} 0-1